bitfinex-derivatives/quotes_SOLF0:USTF0_20250109
["timestamp","ask_amount","ask_price","bid_price","bid_amount"]
[1736419679394,1.4725,190.75,190.63,10.56709573]
[1736419679395,2.6229,190.71,190.63,10.56709573]
[1736419679592,2.6229,190.71,190.68,2.6233]
[1736419682691,8.67477163,190.8,190.69,10.56709573]
[1736419682887,0.7993092,190.79,190.69,10.56709573]
[1736419683683,22.30816736,190.81,190.7,2.623]
[1736419683884,0.7992301,190.8,190.7,2.623]
[1736419684196,2.6227,190.73,190.7,2.623]
[1736419684395,10.56709573,190.78,190.68,2.6233]
[1736419684894,2.6229,190.72,190.68,2.6233]
[1736419685696,2.6227,190.73,190.69,2.6231]
[1736419687495,6.76312616,190.75,190.69,6.76312616]
[1736419688195,6.76312616,190.75,190.68,2.6233]
[1736419688391,6.76312616,190.73,190.67,6.76312616]
[1736419688990,2.6232,190.7,190.67,6.76312616]
[1736419689185,6.76312616,190.73,190.65,10.90922616]
[1736419689387,6.76312616,190.71,190.65,6.76312616]
[1736419689598,6.76312616,190.71,190.63,6.76312616]
[1736419689896,4.6,190.77,190.63,6.76312616]
[1736419689897,6.76312616,190.69,190.63,6.76312616]
[1736419690096,2.6234,190.68,190.63,6.76312616]
[1736419690298,6.76312616,190.71,190.63,6.76312616]
[1736419690798,2.6236,190.66,190.63,6.76312616]
[1736419691599,6.76312616,190.71,190.63,6.76312616]
[1736419691600,6.76312616,190.71,190.63,9.38702616]
[1736419691797,2.6235,190.67,190.63,9.38702616]
[1736419692699,2.6235,190.67,190.63,6.76312616]
[1736419692899,6.76312616,190.71,190.65,6.76312616]
[1736419693100,2.6233,190.69,190.65,6.76312616]
[1736419694198,2.6233,190.69,190.66,2.6236]
[1736419699010,6.76312616,190.76,190.67,6.76312616]
[1736419699209,6.76312616,190.76,190.69,6.76312616]
[1736419699411,6.76312616,190.78,190.71,6.76312616]
[1736419699809,6.76312616,190.78,190.73,6.76312616]
[1736419700710,3.0663,190.81,190.73,6.76312616]
[1736419701010,3.0663,190.81,190.75,6.76312616]
[1736419701411,2.6219,190.79,190.75,9.38542616]
[1736419702711,2.6219,190.79,190.75,6.76312616]
[1736419703804,2.6217,190.8,190.75,9.38542616]
[1736419704012,6.76312616,190.84,190.77,6.76312616]
[1736419704602,2.6217,190.8,190.77,6.76312616]
[1736419705911,2.6216,190.81,190.77,6.76312616]
[1736419706102,6.76312616,190.84,190.77,6.76312616]
[1736419706507,3.0773,190.86,190.77,6.76312616]
[1736419706709,6.76312616,190.84,190.77,6.76312616]
[1736419707106,2.6217,190.8,190.77,6.76312616]
[1736419708106,3.0773,190.86,190.75,1.5054]
[1736419708310,6.76312616,190.82,190.74,11.36312616]
[1736419708611,6.76312616,190.8,190.74,11.36312616]
[1736419709411,6.76312616,190.82,190.74,11.36312616]
[1736419709814,6.76312616,190.82,190.76,6.76312616]
[1736419710907,2.6221,190.78,190.76,6.76312616]
[1736419712713,6.76312616,190.82,190.76,6.76312616]
[1736419712919,2.6221,190.77,190.76,6.76312616]
[1736419714715,6.76312616,190.82,190.76,6.76312616]
[1736419714911,6.76312616,190.84,190.78,6.76312616]
[1736419715609,1.586,190.87,190.75,1.5862]
[1736419715610,6.76312616,190.87,190.8,6.76312616]
[1736419715819,6.76312616,190.89,190.82,6.76312616]
[1736419716008,6.76312616,190.89,190.82,9.38442616]
[1736419716009,2.6208,190.87,190.82,9.38442616]
[1736419716212,6.76312616,190.91,190.84,6.76312616]
[1736419716717,6.76312616,190.93,190.86,6.76312616]
[1736419716906,8.67477163,190.94,190.88,6.76312616]
[1736419717108,2.62,190.93,190.9,6.76312616]
[1736419717514,8.67477163,190.94,190.9,6.76312616]
[1736419717713,1.5268,190.98,190.81,4.58]
[1736419717714,6.76312616,190.95,190.88,6.76312616]
[1736419717912,6.76312616,190.95,190.81,4.58]
[1736419717913,6.76312616,190.93,190.86,6.76312616]
[1736419718115,6.76312616,190.93,190.88,6.76312616]
[1736419718315,2.6203,190.91,190.88,6.76312616]
[1736419719220,6.76312616,190.95,190.88,6.76312616]
[1736419719420,2.6199,190.93,190.88,6.76312616]
[1736419719815,2.6199,190.93,190.9,6.76312616]
[1736419720920,2.6196,190.95,190.9,6.76312616]
[1736419721110,6.76312616,190.97,190.9,6.76312616]
[1736419721722,2.6199,190.93,190.9,6.76312616]
[1736419724312,2.6199,190.93,190.92,6.76312616]
[1736419726522,2.6199,190.93,190.9,6.76312616]
[1736419726729,6.76312616,190.93,190.87,6.76312616]
[1736419727037,6.76312616,190.91,190.85,6.76312616]
[1736419727413,2.6209,190.86,190.85,6.76312616]
[1736419729219,6.76312616,190.91,190.85,6.76312616]
[1736419729422,2.6207,190.88,190.84,2.6211]
[1736419730525,2.6207,190.88,190.85,2.6209]
[1736419730721,10.55057286,190.94,190.85,2.6209]
[1736419730925,2.6204,190.9,190.83,3.1083]
[1736419731130,10.55057286,190.94,190.83,3.1083]
[1736419731517,2.6205,190.89,190.85,2.6209]
[1736419732827,2.6203,190.91,190.87,2.6207]
[1736419733919,2.6203,190.9,190.87,2.6207]
[1736419734231,10.55057286,190.97,190.85,10.55057286]
[1736419734429,0.79962891,190.96,190.85,10.55057286]
[1736419734723,10.55057286,190.97,190.85,13.17157286]
[1736419735432,10.55057286,190.94,190.84,1.6161]
[1736419736530,10.55057286,190.94,190.85,2.621]
[1736419736730,10.55057286,190.97,190.84,1.6161]
[1736419736936,0.79964895,190.96,190.84,1.6161]
[1736419737335,2.6203,190.9,190.86,2.6207]
[1736419737535,2.6203,190.9,190.84,1.6161]
[1736419738036,2.6203,190.9,190.86,2.6208]
[1736419740135,2.6203,190.9,190.86,2.6207]
[1736419741139,10.55057286,190.97,190.86,2.6207]
[1736419741336,10.55057286,190.97,190.84,1.6161]
[1736419741534,10.55057286,190.97,190.87,10.55057286]
[1736419742034,2.6201,190.92,190.88,2.6206]
[1736419742231,10.55057286,190.97,190.87,10.55057286]
[1736419742438,2.6198,190.94,190.87,10.55057286]
[1736419742637,10.55057286,190.97,190.88,2.6206]
[1736419743032,10.55057286,190.97,190.87,10.55057286]
[1736419743239,10.55057286,190.97,190.87,13.17127286]
[1736419743436,10.55057286,190.97,190.87,10.55057286]
[1736419743637,10.55057286,190.97,190.84,1.6161]
[1736419743837,0.79945504,190.96,190.84,1.6161]
[1736419744238,2.6208,190.87,190.84,1.6161]
[1736419744436,10.55057286,190.94,190.83,1.5226]
[1736419744744,10.2229942,190.99,190.81,4.58]
[1736419744745,10.55057286,190.91,190.81,4.58]
[1736419745241,2.6212,190.84,190.81,4.58]
[1736419745742,10.55057286,190.91,190.82,2.6214]
[1736419745940,2.621,190.86,190.82,2.6214]
[1736419748337,2.621,190.85,190.82,2.6214]
[1736419748745,10.55057286,190.91,190.79,17.32123938]
[1736419748944,2.6216,190.81,190.79,6.77066652]
[1736419749339,2.6216,190.81,190.79,13.52686826]
[1736419749741,2.6214,190.82,190.79,16.14866826]
[1736419750240,6.75620174,190.86,190.79,16.14866826]
[1736419750241,6.75620174,190.86,190.79,13.52686826]
[1736419750746,2.6214,190.83,190.81,6.75620174]
[1736419750948,6.75620174,190.88,190.81,6.75620174]
[1736419751141,2.6209,190.86,190.81,6.75620174]
[1736419751337,9.96320174,190.9,190.83,6.75620174]
[1736419751943,10.1785942,190.95,190.85,6.75620174]
[1736419752146,6.75620174,190.93,190.85,6.75620174]
[1736419752342,2.6203,190.91,190.87,9.37680174]
[1736419752640,2.6203,190.91,190.87,6.75620174]
[1736419753546,2.6203,190.9,190.87,9.37690174]
[1736419753938,2.6203,190.9,190.87,6.75620174]
[1736419754146,6.75620174,190.93,190.87,6.75620174]
[1736419754341,2.6201,190.92,190.89,6.75620174]
[1736419754942,9.81720174,190.97,190.89,6.75620174]
[1736419755141,0.79900062,190.96,190.91,6.75620174]
[1736419755345,0.79900062,190.96,190.86,3.0308]
[1736419755346,0.79900062,190.96,190.88,10.54402763]
[1736419755943,3.061,190.97,190.88,10.54402763]
[1736419756144,2.6198,190.94,190.9,2.6203]
[1736419756541,20.72262183,191.0,190.9,2.6203]
[1736419756742,20.72262183,191.0,190.88,13.16462763]
[1736419756743,2.6201,190.92,190.88,13.16462763]
[1736419757050,10.54402763,190.97,190.86,4.5947]
[1736419757646,2.6203,190.91,190.87,2.6206]
[1736419758151,10.54402763,190.97,190.87,2.6206]
[1736419758349,10.54402763,190.97,190.86,5.6516]
[1736419758550,10.54402763,190.97,190.82,10.54402763]
[1736419758755,2.6206,190.88,190.82,10.54402763]
[1736419758947,2.6206,190.88,190.84,2.621]
[1736419759148,10.54402763,190.94,190.82,10.54402763]
[1736419759741,10.54402763,190.94,190.81,1.5617]
[1736419759742,10.54402763,190.91,190.8,7.6274]
[1736419760052,10.54402763,190.91,190.79,15.81849415]
[1736419760248,1.4949,190.9,190.79,5.27446652]
[1736419760848,1.4949,190.9,190.79,7.89626652]
[1736419761445,2.6213,190.83,190.79,7.89626652]
[1736419761940,10.54402763,190.88,190.79,7.89626652]
[1736419762145,2.6214,190.82,190.79,7.89626652]
[1736419762647,10.54402763,190.88,190.79,5.27446652]
[1736419762853,10.54402763,190.85,190.75,1.4925]
[1736419763750,10.54402763,190.85,190.73,12.09892763]
[1736419763948,1.5034,190.84,190.73,12.09892763]
[1736419764655,1.5034,190.84,190.74,2.6225]
[1736419764856,1.5034,190.84,190.73,12.09892763]
[1736419765051,1.5034,190.84,190.75,2.6223]
[1736419765052,2.6219,190.79,190.75,2.6223]
[1736419766054,2.6219,190.79,190.74,2.6225]
[1736419767553,2.6221,190.78,190.73,13.16662763]
[1736419768256,2.6221,190.78,190.74,2.6225]
[1736419769453,2.6221,190.78,190.73,13.16662763]
[1736419769654,1.5034,190.84,190.73,10.54402763]
[1736419770260,2.6216,190.81,190.75,2.6224]
[1736419770462,1.5034,190.84,190.75,2.6224]
[1736419770659,1.5034,190.84,190.73,10.54402763]
[1736419771659,2.6217,190.81,190.77,2.6221]
[1736419771863,2.6217,190.81,190.73,10.54402763]
[1736419772363,2.6214,190.83,190.78,2.6219]
[1736419772559,1.5973,190.86,190.78,2.6219]
[1736419772759,2.6216,190.81,190.77,2.6221]
[1736419773562,1.5973,190.86,190.76,10.54402763]
[1736419773763,1.5973,190.86,190.73,10.54402763]
[1736419775367,2.6218,190.8,190.76,6.75805155]
[1736419776866,6.75805155,190.83,190.76,6.75805155]
[1736419777067,1.5135,190.89,190.78,2.6219]
[1736419777261,1.5135,190.89,190.79,6.75805155]
[1736419777262,6.75805155,190.85,190.79,6.75805155]
[1736419777463,2.6213,190.83,190.79,6.75805155]
[1736419777663,2.6213,190.83,190.79,9.37975155]
[1736419778770,2.6213,190.83,190.8,2.6217]
[1736419778959,6.75805155,190.87,190.81,6.75805155]
[1736419779162,8.27155155,190.89,190.81,6.75805155]
[1736419779361,6.75805155,190.89,190.81,6.75805155]
[1736419779768,2.6209,190.86,190.83,6.75805155]
[1736419781870,2.621,190.85,190.81,9.37955155]
[1736419782164,2.621,190.85,190.81,6.75805155]
[1736419782373,2.621,190.85,190.82,2.6214]
[1736419784176,6.75805155,190.87,190.81,6.75805155]
[1736419784369,2.6213,190.83,190.81,6.75805155]
[1736419785375,2.9625,190.9,190.81,6.75805155]
[1736419785578,6.75805155,190.88,190.81,6.75805155]
[1736419786175,2.621,190.86,190.82,2.6213]
[1736419786473,6.75805155,190.88,190.82,2.6213]
[1736419786669,2.6209,190.86,190.82,2.6213]
[1736419786868,6.75805155,190.88,190.82,2.6213]
[1736419787065,6.75805155,190.88,190.81,6.75805155]
[1736419787272,2.6207,190.88,190.83,6.75805155]
[1736419788071,2.6207,190.88,190.84,2.621]
[1736419788475,6.75805155,190.9,190.84,2.621]
[1736419788677,2.6207,190.87,190.84,2.621]
[1736419791476,2.6207,190.87,190.83,9.37915155]
[1736419791777,2.6207,190.87,190.83,6.75805155]
[1736419792271,2.6207,190.87,190.84,2.6211]
[1736419792473,2.6207,190.87,190.83,6.75805155]
[1736419792873,2.6207,190.87,190.83,9.37925155]
[1736419793272,2.6207,190.87,190.83,6.75805155]
[1736419793671,2.6207,190.87,190.84,2.6211]
[1736419793977,2.6207,190.87,190.83,6.75805155]
[1736419794373,2.6207,190.87,190.83,9.37925155]
[1736419794573,2.6207,190.87,190.83,6.75805155]
[1736419794873,6.75805155,190.9,190.83,6.75805155]
[1736419795182,6.75805155,190.92,190.85,6.75805155]
[1736419795572,2.6204,190.9,190.87,2.6207]
[1736419795878,6.75805155,190.92,190.85,6.75805155]
[1736419796076,6.75805155,190.96,190.89,6.75805155]
[1736419796482,2.6199,190.94,190.9,2.6202]
[1736419798678,2.6202,190.91,190.88,2.6206]
[1736419798986,6.75805155,190.92,190.85,4.6609]
[1736419799283,6.75805155,190.92,190.85,11.41895155]
[1736419799483,2.6205,190.89,190.85,11.41895155]
[1736419800086,2.6205,190.89,190.85,14.03995155]
[1736419800284,2.6207,190.88,190.83,6.75805155]
[1736419800485,6.75805155,190.9,190.83,6.75805155]
[1736419800880,2.621,190.86,190.83,6.75805155]
[1736419801081,6.75805155,190.86,190.79,6.75805155]
[1736419801284,6.75805155,190.84,190.78,1.6213]
[1736419801587,6.75805155,190.84,190.77,6.75805155]
[1736419802077,2.6214,190.82,190.77,9.38015155]
[1736419802277,2.6214,190.82,190.77,6.75805155]
[1736419802577,2.6211,190.84,190.79,6.75805155]
[1736419803185,2.6209,190.86,190.81,9.37945155]
[1736419803482,6.75805155,190.88,190.83,6.75805155]
[1736419803887,6.75805155,190.9,190.83,6.75805155]
[1736419804080,6.75805155,190.9,190.85,6.75805155]
[1736419804276,2.6202,190.91,190.85,6.75805155]
[1736419804484,2.6202,190.91,190.87,9.37875155]
[1736419804782,6.75805155,190.92,190.87,6.75805155]
[1736419804978,2.6203,190.9,190.85,2.621]
[1736419805880,2.6207,190.88,190.84,2.6211]
[1736419806077,10.54886827,190.93,190.82,4.5923]
[1736419806487,10.54886827,190.93,190.82,7.2136]
[1736419806692,10.54886827,190.93,190.82,4.5923]
[1736419807088,2.6207,190.88,190.84,2.6211]
[1736419807389,10.54886827,190.93,190.82,4.5923]
[1736419807784,10.54886827,190.93,190.84,2.621]
[1736419808279,2.6203,190.91,190.84,2.621]
[1736419808479,10.54886827,190.93,190.84,2.621]
[1736419808884,2.6206,190.89,190.85,2.6209]
[1736419809985,1.6125,190.94,190.86,2.6208]
[1736419810592,2.6204,190.9,190.86,2.6208]
[1736419810787,10.54886827,190.96,190.83,10.54886827]
[1736419810992,10.54886827,190.99,190.86,10.54886827]
[1736419811289,2.6198,190.94,190.9,2.6203]
[1736419811689,10.54886827,190.99,190.86,10.54886827]
[1736419812393,10.54886827,190.99,190.88,2.6205]
[1736419813094,2.62,190.93,190.88,2.6205]
[1736419813290,2.62,190.93,190.86,10.54886827]
[1736419813490,2.62,190.93,190.89,2.6203]
[1736419814193,2.6203,190.91,190.87,2.6206]
[1736419814383,2.6203,190.91,190.86,10.54886827]
[1736419814587,10.54886827,190.96,190.86,10.54886827]
[1736419814985,2.6202,190.92,190.88,2.6206]
[1736419815189,10.54886827,190.96,190.88,2.6206]
[1736419815385,10.54886827,190.99,190.88,2.6206]
[1736419815590,2.62,190.93,190.89,2.6204]
[1736419816099,10.54886827,190.99,190.86,10.54886827]
[1736419816988,2.6199,190.94,190.9,2.6202]
[1736419817194,2.6199,190.94,190.86,10.54886827]
[1736419817495,2.6199,190.94,190.9,2.6203]
[1736419818502,2.6199,190.93,190.9,2.6203]
[1736419819088,2.6201,190.92,190.88,2.6206]
[1736419819393,10.54886827,190.99,190.86,10.54886827]
[1736419819799,2.6202,190.92,190.87,2.6206]
[1736419820495,2.6202,190.91,190.87,2.6206]
[1736419821193,2.6204,190.9,190.86,13.16966827]
[1736419821395,13.2969942,191.0,190.82,9.86589031]
[1736419821396,10.54886827,190.96,190.83,10.54886827]
[1736419821893,2.6206,190.89,190.83,10.54886827]
[1736419822696,2.6206,190.88,190.83,10.54886827]
[1736419822891,10.54886827,190.96,190.84,2.6211]
[1736419823291,2.6206,190.89,190.83,10.54886827]
[1736419823490,2.6206,190.89,190.85,2.621]
[1736419824296,2.6206,190.88,190.85,2.621]
[1736419824595,10.54886827,190.93,190.82,4.5923]
[1736419824791,10.54886827,190.9,190.77,15.82385215]
[1736419824996,10.54886827,190.9,190.79,2.6218]
[1736419825601,10.54886827,190.9,190.77,15.82385215]
[1736419825903,2.6209,190.86,190.77,15.82385215]
[1736419826105,15.12886827,190.93,190.8,10.54886827]
[1736419826400,2.6207,190.87,190.8,10.54886827]
[1736419826593,15.12886827,190.93,190.82,2.6213]
[1736419827093,15.12886827,190.93,190.8,10.54886827]
[1736419827905,2.6205,190.89,190.84,2.621]
[1736419828097,15.12886827,190.93,190.84,2.621]
[1736419828494,15.12886827,190.93,190.83,10.54886827]
[1736419828707,15.12886827,190.93,190.85,2.621]
[1736419828898,15.12886827,190.93,190.83,10.54886827]
[1736419829601,15.12886827,190.93,190.85,2.6209]
[1736419829602,2.6206,190.89,190.85,2.6209]
[1736419829797,10.54886827,190.96,190.83,10.54886827]
[1736419831997,10.54886827,190.96,190.86,2.6208]
[1736419833008,2.6204,190.89,190.86,2.6208]
[1736419834206,10.54886827,190.96,190.85,2.621]
[1736419834506,2.6206,190.88,190.85,2.621]
[1736419835105,2.6204,190.89,190.86,2.6208]
[1736419836107,2.6203,190.9,190.86,2.6208]
[1736419837404,2.6203,190.9,190.87,6.7510943]
[1736419838316,2.6205,190.89,190.87,6.7510943]
[1736419838806,2.6205,190.89,190.85,9.3720943]
[1736419839712,2.6205,190.89,190.86,2.6209]
[1736419843717,2.6201,190.92,190.88,2.6205]
[1736419843903,6.7510943,190.94,190.88,2.6205]
[1736419844108,4.6567,191.0,190.89,6.7510943]
[1736419844410,6.7510943,190.96,190.87,4.58]
[1736419844712,6.7510943,190.96,190.88,6.7510943]
[1736419844912,2.6201,190.92,190.89,2.6204]
[1736419845613,6.7510943,190.94,190.88,6.7510943]
[1736419845814,6.7510943,190.94,190.87,7.2006]
[1736419846309,2.62,190.92,190.87,7.2006]
[1736419846617,6.7510943,190.94,190.87,7.2006]
[1736419847014,6.7510943,190.94,190.88,6.7510943]
[1736419847612,2.62,190.93,190.9,2.6203]
[1736419847915,6.7510943,190.94,190.88,6.7510943]
[1736419848216,2.62,190.93,190.89,2.6203]
[1736419850621,2.62,190.93,190.9,9.3712943]
[1736419850816,1.4774,191.0,190.92,6.7510943]
[1736419851017,10.1341942,191.03,190.94,2.6197]
[1736419851320,6.7510943,191.0,190.94,2.6197]
[1736419851726,2.6193,190.98,190.95,2.6196]
[1736419852325,2.6193,190.98,190.94,9.3708943]
[1736419855230,2.6194,190.97,190.96,6.7510943]
[1736419855726,2.6192,190.98,190.96,6.7510943]
[1736419855931,6.7510943,191.02,190.96,6.7510943]
[1736419856135,6.7510943,191.04,190.96,6.7510943]
[1736419856333,2.6189,191.01,190.98,6.7510943]
[1736419857428,2.619,191.0,190.98,6.7510943]
[1736419857830,6.7510943,191.04,190.98,6.7510943]
[1736419858031,6.7510943,191.04,190.98,9.3702943]
[1736419858432,2.6188,191.02,190.98,9.3702943]
[1736419859435,2.6188,191.01,190.98,6.7510943]
[1736419860335,6.7510943,191.04,190.98,6.7510943]
[1736419860539,6.7510943,191.04,190.96,9.3705943]
[1736419861434,2.619,191.0,190.96,9.3705943]
[1736419861641,6.7510943,191.02,190.95,4.7134]
[1736419862735,2.6193,190.98,190.95,4.7134]
[1736419863038,2.6193,190.98,190.96,6.7510943]
[1736419863938,6.7510943,191.0,190.95,3.2172]
[1736419864532,2.6194,190.97,190.95,3.2172]
[1736419864734,6.7510943,191.0,190.95,3.2172]
[1736419865332,4.58,191.04,190.95,3.2172]
[1736419865533,6.7510943,191.01,190.95,3.2172]
[1736419865733,2.6195,190.96,190.95,3.2172]
[1736419866436,4.58,191.04,190.9,6.7510943]
[1736419866437,2.62,190.92,190.9,6.7510943]
[1736419866734,2.62,190.92,190.88,1.6232]
[1736419866735,6.7510943,190.93,190.88,9.8886943]
[1736419866938,2.6204,190.89,190.88,3.1376]
[1736419867140,2.6204,190.89,190.88,1.5144]
[1736419867731,9.8307,191.03,190.88,8.2654943]
[1736419867936,6.7510943,190.97,190.9,6.7510943]
[1736419868128,6.7510943,190.97,190.91,2.6201]
[1736419868541,6.7510943,190.97,190.9,6.7510943]
[1736419868938,2.6199,190.94,190.9,9.3713943]
[1736419869137,6.7510943,190.95,190.9,6.7510943]
[1736419869342,6.7510943,190.95,190.89,3.009]
[1736419870737,2.6203,190.91,190.89,3.009]
[1736419871139,6.7510943,190.95,190.89,3.009]
[1736419871331,2.62,190.93,190.89,3.009]
[1736419872142,6.7510943,190.95,190.89,3.009]
[1736419872542,6.7510943,190.95,190.89,5.6294]
[1736419873643,6.7510943,190.97,190.91,2.6201]
[1736419875046,6.7510943,190.99,190.92,9.3709943]
[1736419875345,6.7510943,190.99,190.94,6.7510943]
[1736419875545,6.7510943,191.01,190.94,6.7510943]
[1736419875843,2.6191,190.99,190.96,6.7510943]
[1736419876044,4.58,191.07,190.98,6.7510943]
[1736419876240,4.7977,191.08,190.98,6.7510943]
[1736419876437,2.6186,191.03,190.98,6.7510943]
[1736419876638,6.7510943,191.07,191.0,6.7510943]
[1736419877048,2.6184,191.04,191.01,2.6188]
[1736419877446,6.7510943,191.07,191.0,6.7510943]
[1736419877743,6.7510943,191.07,191.02,6.7510943]
[1736419877949,6.7510943,191.09,191.04,6.7510943]
[1736419878150,8.73826934,191.11,191.04,6.7510943]
[1736419878350,15.48936364,191.11,191.04,6.7510943]
[1736419878649,15.48936364,191.11,190.97,9.3357]
[1736419878650,6.7510943,191.13,191.06,6.7510943]
[1736419879840,2.6177,191.09,191.06,6.7510943]
[1736419880849,2.6175,191.11,191.06,9.3691943]
[1736419881848,6.7510943,191.13,191.06,9.3691943]
[1736419883151,2.6174,191.11,191.06,9.3691943]
[1736419888048,2.6174,191.11,191.06,6.7510943]
[1736419888253,2.6174,191.11,191.07,2.618]
[1736419888458,2.6174,191.11,190.97,9.3357]
[1736419888459,4.58,191.17,191.08,6.7510943]
[1736419888755,2.6173,191.13,191.08,6.7510943]
[1736419888960,2.6173,191.13,191.08,9.3688943]
[1736419889753,6.7510943,191.16,191.1,6.7510943]
[1736419889754,2.6173,191.12,191.1,6.7510943]
[1736419890052,6.7510943,191.16,191.1,6.7510943]
[1736419890250,6.7510943,191.16,191.12,6.7510943]
[1736419890251,2.6168,191.16,191.12,6.7510943]
[1736419890451,6.7510943,191.18,191.12,6.7510943]
[1736419890855,2.6168,191.16,191.12,6.7510943]
[1736419891252,2.6168,191.16,191.14,6.7510943]
[1736419893450,13.31826934,191.24,191.14,6.7510943]
[1736419893666,7.5541065,191.23,191.16,6.7510943]
[1736419893851,6.7510943,191.23,191.16,6.7510943]
[1736419894156,6.7510943,191.23,191.18,6.7510943]
[1736419894362,4.5445,191.31,191.2,6.7510943]
[1736419894563,6.7510943,191.28,191.22,6.7510943]
[1736419895057,6.7510943,191.28,191.22,9.3669943]
[1736419895256,6.7510943,191.28,191.11,4.58]
[1736419895463,6.7510943,191.28,191.22,6.7510943]
[1736419896153,2.6158,191.24,191.19,2.6163]
[1736419896359,6.7510943,191.28,191.21,6.7510943]
[1736419896754,3.0009,191.31,191.21,6.7510943]
[1736419896952,6.7510943,191.29,191.21,6.7510943]
[1736419897158,6.7510943,191.27,191.21,6.7510943]
[1736419898058,2.6158,191.23,191.21,6.7510943]
[1736419899360,6.7510943,191.27,191.21,6.7510943]
[1736419899560,2.6157,191.24,191.21,6.7510943]
[1736419900162,6.7510943,191.29,191.23,6.7510943]
[1736419901160,2.6155,191.25,191.21,9.3670943]
[1736419901860,2.6155,191.25,191.23,6.7510943]
[1736419903060,6.7510943,191.31,191.23,6.7510943]
[1736419903265,6.7510943,191.31,191.2,3.0531]
[1736419903266,1.6131,191.35,191.27,6.7510943]
[1736419903465,2.6147,191.31,191.27,6.7510943]
[1736419903760,2.6147,191.31,191.29,6.7510943]
[1736419904858,2.6148,191.3,191.29,6.7510943]
[1736419905257,6.7510943,191.34,191.27,6.7510943]
[1736419905462,2.615,191.29,191.27,6.7510943]
[1736419907966,2.6148,191.3,191.27,6.7510943]
[1736419908266,2.6148,191.3,191.29,6.7510943]
[1736419908966,2.615,191.29,191.27,6.7510943]
[1736419909267,6.7510943,191.33,191.25,6.7510943]
[1736419909467,2.6157,191.24,191.21,1.5212]
[1736419909764,2.6157,191.24,191.23,6.7510943]
[1736419909958,6.7510943,191.29,191.23,6.7510943]
[1736419910164,6.7510943,191.31,191.23,6.7510943]
[1736419910360,6.7510943,191.31,191.25,6.7510943]
[1736419910570,2.6152,191.28,191.27,6.7510943]
[1736419913168,2.6152,191.28,191.21,1.5212]
[1736419913368,2.6152,191.28,191.25,6.7510943]
[1736419914468,2.6153,191.27,191.25,6.7510943]
[1736419920571,2.6151,191.28,191.25,9.3665943]
[1736419920771,2.6151,191.28,191.27,6.7510943]
[1736419921274,4.58,191.38,191.27,6.7510943]
[1736419921275,2.6149,191.3,191.27,9.3662943]
[1736419921565,2.6149,191.3,191.29,6.7510943]
[1736419927877,2.6149,191.3,191.27,6.7510943]
[1736419928980,2.6147,191.31,191.29,6.7510943]
[1736419932889,6.7510943,191.35,191.29,6.7510943]
[1736419933887,2.6148,191.31,191.29,6.7510943]
[1736419934388,6.7510943,191.38,191.29,9.3659943]
[1736419934587,6.7510943,191.38,191.32,6.7510943]
[1736419934779,8.67648468,191.39,191.32,6.7510943]
[1736419934985,8.2207943,191.4,191.32,6.7510943]
[1736419935185,6.7510943,191.41,191.34,6.7510943]
[1736419935680,2.6141,191.36,191.34,6.7510943]
[1736419937488,2.6139,191.38,191.34,9.3652943]
[1736419937682,2.6139,191.38,191.36,6.7510943]
[1736419937882,2.6136,191.4,191.36,6.7510943]
[1736419938080,2.6136,191.4,191.35,2.614]
[1736419938081,2.6136,191.4,191.39,6.7510943]
[1736419938680,2.6133,191.42,191.39,6.7510943]
[1736419938886,8.67648468,191.49,191.41,6.7510943]
[1736419939085,8.67648468,191.49,191.44,6.7510943]
[1736419939288,2.6126,191.47,191.44,6.7510943]
[1736419939489,2.6126,191.47,191.46,6.7510943]
[1736419940287,8.67648468,191.52,191.46,6.7510943]
[1736419940288,2.6121,191.5,191.46,6.7510943]
[1736419940483,8.67648468,191.52,191.49,6.7510943]
[1736419940789,6.7510943,191.55,191.49,6.7510943]
[1736419940981,6.7510943,191.55,191.47,6.7510943]
[1736419941186,6.7510943,191.53,191.38,4.4823]
[1736419941392,6.7510943,191.53,191.46,6.7510943]
[1736419941587,2.612,191.51,191.46,6.7510943]
[1736419941787,6.7510943,191.52,191.38,4.4823]
[1736419941992,6.7510943,191.52,191.46,6.7510943]
[1736419942189,2.6125,191.47,191.46,6.7510943]
[1736419942787,2.6125,191.47,191.38,4.4823]